bitfinex-derivatives/quotes_ETHF0:USTF0_20250101
["timestamp","ask_amount","ask_price","bid_price","bid_amount"]
[1735766942094,0.8702,3369.6,3369.5,0.29738]
[1735766942284,1.06001961,3369.8,3369.4,1.04087]
[1735766942495,1.06001961,3369.8,3369.7,0.29737]
[1735766942899,1.35737961,3369.8,3369.7,0.29737]
[1735766943294,1.06001961,3369.8,3369.7,0.29737]
[1735766944501,1.35737961,3369.8,3369.7,0.29737]
[1735766945196,3.2078,3370.0,3369.4,0.74348]
[1735766945403,1.06001961,3369.7,3369.6,0.29737]
[1735766949601,0.29739,3369.6,3369.5,0.29738]
[1735766949899,2.26800961,3369.6,3369.5,0.29738]
[1735766950903,1.82640961,3369.6,3369.5,0.29738]
[1735766951700,1.52901961,3369.6,3369.5,0.29738]
[1735766952290,1.82638961,3369.6,3369.5,0.29738]
[1735766969011,1.52901961,3369.6,3369.5,0.29738]
[1735766969818,1.82638961,3369.6,3369.5,0.29738]
[1735766970011,1.52901961,3369.6,3369.5,0.29738]
[1735766971718,3.2078,3370.0,3369.2,3.2078]
[1735766972017,3.50514,3370.0,3369.9,0.29735]
[1735766973120,0.29734,3370.0,3369.9,0.29735]
[1735766973319,2.41737922,3370.0,3369.9,0.29735]
[1735766973519,0.29734,3370.0,3369.9,0.29735]
[1735766973820,2.41737922,3370.0,3369.9,0.29735]
[1735766974212,13.36162158,3370.1,3369.9,0.29735]
[1735766974419,13.65896158,3370.1,3370.0,0.29734]
[1735766974819,14.71898119,3370.1,3370.0,0.29734]
[1735766975821,14.42164119,3370.1,3369.6,4.5577]
[1735766976122,0.29735,3370.0,3369.9,0.29734]
[1735766977122,1.35736961,3370.0,3369.9,0.29734]
[1735766977820,0.29736,3369.9,3369.8,0.29735]
[1735766978320,0.29736,3369.9,3369.6,4.5577]
[1735766978321,1.35735961,3370.0,3369.9,0.29735]
[1735766978525,1.06001961,3370.0,3369.6,4.5577]
[1735766978718,1.06001961,3369.7,3369.6,4.85507]
[1735766979119,1.35738961,3369.7,3369.6,1.64727]
[1735766980326,1.35738961,3369.7,3369.6,1.3499]
[1735766980720,1.35738961,3369.7,3369.6,1.64727]
[1735766982623,0.29739,3369.6,3369.5,0.29738]
[1735766982922,1.35740961,3369.6,3369.5,0.29738]
[1735766987119,0.29739,3369.5,3369.4,0.29739]
[1735766987321,1.78780961,3369.5,3369.4,0.29739]
[1735766988423,1.49041961,3369.5,3369.3,1.3512]
[1735766988624,0.29739,3369.4,3369.3,1.64859]
[1735766990124,1.49041961,3369.5,3369.4,0.29739]
[1735766990327,1.78779961,3369.5,3369.4,0.29739]
[1735766991627,3.2078,3370.0,3369.9,0.29735]
[1735766991927,1.06001961,3370.0,3369.9,0.29735]
[1735766994632,1.35735961,3370.0,3369.9,0.29735]
[1735766996428,0.29736,3369.9,3369.8,0.29735]
[1735766996629,1.35737961,3369.9,3369.8,0.29735]
[1735766998134,1.06001961,3369.9,3369.8,0.29735]
[1735766998730,1.35736961,3369.9,3369.8,0.29735]
[1735766999931,0.29735,3369.9,3369.8,0.29735]
[1735767000133,1.35736961,3369.9,3369.5,3.95125]
[1735767000333,1.35736961,3369.9,3369.8,0.29736]
[1735767000530,0.7434,3369.8,3368.7,0.74364]
[1735767000733,3.2078,3369.9,3369.7,0.29737]
[1735767000936,3.2078,3370.3,3370.2,0.29732]
[1735767001331,0.29729,3370.6,3370.5,0.29729]
[1735767001540,1.35730961,3370.6,3370.5,0.29729]
[1735767001833,0.2973,3370.5,3370.4,0.2973]
[1735767002031,1.35731961,3370.5,3370.4,0.2973]
[1735767002231,0.29733,3370.2,3370.1,0.29733]
[1735767002431,1.06001961,3370.2,3370.1,0.29733]
[1735767004037,0.29734,3370.0,3369.9,0.29735]
[1735767004340,0.29735,3369.9,3369.8,3.2078]
[1735767004534,0.29735,3369.9,3369.8,3.50516]
[1735767004733,0.29735,3369.9,3369.8,3.2078]
[1735767006528,0.2974,3369.4,3369.3,0.29739]
[1735767006735,2.23898765,3369.6,3369.2,0.913]
[1735767006935,0.2974,3369.3,3369.2,1.2104]
[1735767007128,4.1028,3369.5,3369.2,0.913]
[1735767007435,0.895,3369.5,3369.4,0.29739]
[1735767007638,2.23898765,3369.6,3369.5,0.29738]
[1735767007933,3.2078,3370.0,3369.6,0.29737]
[1735767007934,3.13398765,3369.9,3369.6,0.29737]
[1735767008238,3.13398765,3369.9,3369.3,3.2078]
[1735767008439,3.13398765,3369.9,3369.6,0.29737]
[1735767008739,3.13398765,3369.9,3369.3,3.2078]
[1735767008939,2.99643765,3369.9,3369.8,0.29736]
[1735767009127,2.69908765,3369.9,3369.8,0.29736]
[1735767009334,2.23898765,3370.2,3369.8,44.0078]
[1735767009535,0.29732,3370.3,3369.9,0.8932]
[1735767009831,0.29732,3370.3,3370.2,0.29732]
[1735767011234,0.4601,3370.4,3370.3,0.29731]
[1735767012241,0.4349,3370.7,3370.6,0.29729]
[1735767012441,2.68268765,3370.8,3370.7,0.29728]
[1735767013643,0.4437,3370.8,3370.7,0.29728]
[1735767014241,0.74097,3370.8,3370.7,0.29728]
[1735767014745,0.29728,3370.7,3370.6,0.29728]
[1735767015442,2.53626765,3370.7,3370.6,0.29728]
[1735767015845,0.2973,3370.5,3370.2,3.2078]
[1735767016142,3.2078,3370.7,3370.2,3.2078]
[1735767016448,2.53626765,3370.7,3370.6,0.29729]
[1735767016848,0.74097,3370.8,3370.2,3.2078]
[1735767017048,0.4437,3370.8,3370.7,0.29728]
[1735767017343,0.74097,3370.8,3370.7,0.29728]
[1735767018751,0.29728,3370.7,3370.6,0.29728]
[1735767018944,0.2973,3370.5,3370.2,3.2078]
[1735767019149,0.29731,3370.3,3370.2,3.50512]
[1735767019345,2.68548765,3370.4,3370.2,3.2078]
[1735767019850,0.29731,3370.3,3370.2,3.50511]
[1735767020050,2.68548765,3370.4,3370.2,3.2078]
[1735767020343,2.98279765,3370.4,3370.3,0.29731]
[1735767021239,2.23898765,3370.4,3370.3,0.29731]
[1735767022146,2.23898765,3370.4,3370.2,3.2078]
[1735767022351,2.68398765,3370.4,3370.2,3.50512]
[1735767022541,0.29731,3370.3,3370.2,3.50512]
[1735767022943,0.29731,3370.3,3370.2,3.2078]
[1735767023951,2.68398765,3370.4,3369.3,1.9225]
[1735767023952,0.29734,3370.0,3369.9,0.29734]
[1735767024140,0.29735,3369.9,3369.8,0.29735]
[1735767024347,0.4296,3369.9,3369.4,0.4609]
[1735767024545,2.23898765,3369.7,3369.1,3.2078]
[1735767024848,2.53635765,3369.7,3369.6,0.29737]
[1735767025246,2.23898765,3369.7,3369.1,3.2078]
[1735767025450,0.29738,3369.6,3369.5,0.29738]
[1735767026750,2.53635765,3369.7,3369.6,0.29737]
[1735767027553,2.53635765,3369.7,3369.1,44.0078]
[1735767027554,2.23898765,3369.7,3369.1,44.0078]
[1735767028060,2.53638765,3369.4,3369.3,0.29739]
[1735767029353,2.23898765,3369.4,3369.3,0.29739]
[1735767030253,0.29738,3369.6,3369.5,0.29738]
[1735767030455,2.53635765,3369.7,3369.6,0.29737]
[1735767030649,2.23898765,3369.7,3369.1,3.2078]
[1735767031158,2.53635765,3369.7,3369.6,0.29737]
[1735767032458,0.29738,3369.6,3369.5,0.29738]
[1735767032856,0.29739,3369.5,3369.4,0.29739]
[1735767033257,0.29738,3369.6,3369.5,0.29738]
[1735767034163,0.75308,3369.6,3369.5,0.29738]
[1735767034463,0.4557,3369.6,3369.5,0.29738]
[1735767034662,0.75307,3369.6,3369.5,0.29738]
[1735767035565,0.29739,3369.5,3369.4,0.29738]
[1735767035767,0.2974,3369.4,3369.3,0.2974]
[1735767036065,2.23898765,3369.4,3369.3,0.2974]
[1735767036468,2.53637765,3369.4,3369.3,0.2974]
[1735767036664,2.23898765,3369.4,3369.0,40.8]
[1735767036866,0.4692,3369.3,3368.7,1.3145]
[1735767037075,0.29742,3369.2,3369.1,0.29741]
[1735767037463,0.4692,3369.3,3368.8,40.8]
[1735767037464,0.7666,3369.3,3369.2,0.29741]
[1735767039171,0.29741,3369.2,3369.0,0.29742]
[1735767039366,2.53641765,3369.1,3369.0,0.29742]
[1735767039565,2.97281765,3369.1,3369.0,0.29742]
[1735767042767,2.67538765,3369.1,3368.8,40.8]
[1735767042966,0.29745,3368.8,3368.7,0.29744]
[1735767043274,0.29745,3368.7,3368.6,3.50526]
[1735767043571,0.74235,3368.7,3368.6,3.50526]
[1735767045264,0.29747,3368.5,3368.4,40.8]
[1735767045473,2.53645765,3368.5,3368.4,40.8]
[1735767045775,0.29749,3368.3,3368.2,4.84649]
[1735767046382,0.29751,3368.2,3368.1,0.2975]
[1735767046568,0.29752,3368.1,3368.0,0.29751]
[1735767047067,0.29752,3368.0,3367.9,0.29752]
[1735767047268,0.29752,3367.9,3367.6,4.073]
[1735767047467,2.53652765,3367.7,3367.6,3.50535]
[1735767047669,2.23898765,3367.7,3367.3,0.4499]
[1735767047970,2.53655765,3367.4,3367.3,0.74748]
[1735767048674,2.53655765,3367.4,3367.3,0.29758]
[1735767048869,0.29758,3367.3,3367.2,0.29759]
[1735767049066,0.8858,3367.3,3367.0,4.073]
[1735767049265,0.8858,3367.3,3367.0,3.5054]
[1735767049266,2.23898765,3367.1,3367.0,3.5054]
[1735767049670,2.53658765,3367.1,3367.0,3.5054]
[1735767050574,0.29761,3367.0,3366.7,0.29763]
[1735767050873,2.23898765,3367.1,3367.0,0.2976]
[1735767051076,2.53658765,3367.1,3367.0,0.2976]
[1735767051283,2.23898765,3367.1,3366.8,40.8]
[1735767051577,2.23898765,3367.1,3366.6,0.29764]
[1735767051578,3.41798765,3367.1,3366.6,0.29764]
[1735767051775,2.23898765,3366.7,3366.3,0.4275]
[1735767051969,1.18274,3366.6,3366.4,0.29765]
[1735767052177,0.29765,3366.5,3366.3,0.29766]
[1735767052484,0.29765,3366.5,3366.3,0.29767]
[1735767052485,2.23898765,3366.4,3366.3,0.29767]
[1735767052775,0.29767,3366.3,3366.1,3.50548]
[1735767052977,0.29767,3366.3,3366.1,0.29768]
[1735767053183,0.29767,3366.3,3365.9,0.4275]
[1735767053371,3.2078,3366.5,3366.0,0.29769]
[1735767053372,2.23898765,3366.1,3366.0,0.29769]
[1735767056874,2.23898765,3366.1,3365.5,0.8846]
[1735767056875,2.53666765,3366.1,3365.9,0.2977]
[1735767057178,2.23898765,3366.1,3365.5,0.4331]
[1735767057386,2.53667765,3366.1,3365.9,0.2977]
[1735767057678,0.29769,3366.0,3365.8,0.2977]
[1735767057872,0.446,3365.9,3365.8,0.2977]
[1735767058472,0.446,3365.9,3365.5,0.4331]
[1735767058676,0.446,3365.9,3365.8,0.29771]
[1735767059482,0.446,3365.9,3365.4,3.2078]
[1735767059683,2.23898765,3365.8,3365.6,0.29772]
[1735767059979,2.53669765,3365.8,3365.6,0.29772]
[1735767060380,0.29772,3365.7,3365.5,0.29774]
[1735767060576,2.23898765,3365.6,3365.1,0.92]
[1735767060876,2.23898765,3365.3,3365.1,0.29777]
[1735767061278,2.67838765,3365.3,3365.1,0.29777]
[1735767061479,2.67838765,3365.3,3364.6,4.5429]
[1735767061783,2.67838765,3365.3,3365.1,0.29777]
[1735767061784,0.4475,3365.2,3365.1,0.29777]
[1735767062178,3.2078,3366.2,3365.0,3.2078]
[1735767062476,0.4475,3366.1,3366.0,0.29768]
[1735767065475,2.23898765,3366.2,3365.8,3.2078]
[1735767065785,3.72648765,3368.3,3366.0,2.23898765]
[1735767065786,5.44678765,3367.1,3366.0,2.23898765]
[1735767066083,2.66958765,3367.4,3366.7,3.2078]
[1735767066279,2.66958765,3367.4,3367.3,0.29758]
[1735767066480,2.96715765,3367.4,3367.3,0.29758]
[1735767066982,2.96715765,3367.4,3366.8,0.8736]
[1735767067179,2.96715765,3367.4,3367.2,0.29758]
[1735767067384,2.66958765,3367.4,3367.3,0.29758]
[1735767068277,2.96715765,3367.4,3367.3,0.29758]
[1735767068881,2.66958765,3367.4,3367.3,0.29758]
[1735767069087,2.96715765,3367.4,3367.3,0.29758]
[1735767069785,2.66958765,3367.4,3367.3,0.29758]
[1735767070579,2.23898765,3367.7,3367.1,3.2078]
[1735767070885,0.29755,3367.6,3367.4,0.29756]
[1735767071283,0.29755,3367.6,3367.5,0.29756]
[1735767072086,0.29755,3367.6,3367.4,0.29756]
[1735767072383,0.29759,3367.2,3367.1,3.50539]
[1735767072584,2.23898765,3367.2,3366.9,0.29761]
[1735767072784,0.2976,3367.1,3367.0,0.2976]
[1735767072979,2.23898765,3367.2,3367.0,0.2976]
[1735767072980,2.53657765,3367.2,3367.0,0.2976]
[1735767074191,0.29762,3366.8,3366.7,0.29763]
[1735767074392,0.29762,3366.8,3366.6,3.50543]
[1735767074690,0.29763,3366.7,3366.6,3.50543]
[1735767074991,0.29763,3366.8,3366.6,3.50543]
[1735767075186,2.23898765,3366.9,3366.6,3.2078]
[1735767075387,1.4776,3367.1,3366.9,0.29761]
[1735767075691,0.29763,3366.8,3366.6,3.50543]
[1735767075990,0.29762,3366.8,3366.6,3.50543]
[1735767076386,0.4655,3366.8,3366.7,0.29763]
[1735767076791,0.29765,3366.5,3366.3,0.29767]
[1735767076985,0.4655,3366.8,3366.2,3.2078]
[1735767077185,0.76313,3366.8,3366.6,0.29763]
[1735767077387,0.29763,3366.7,3366.6,0.29763]
[1735767077682,2.23898765,3366.9,3366.3,0.4414]
[1735767077883,0.2976,3367.1,3366.4,3.2078]
[1735767078092,0.2976,3367.1,3366.5,0.4283]
[1735767078393,3.00287765,3367.2,3367.1,0.2976]
[1735767079388,2.70528765,3367.2,3366.8,3.2078]
[1735767079591,0.2976,3367.1,3367.0,0.2976]
[1735767079787,2.70528765,3367.2,3366.8,3.2078]
[1735767079788,0.29761,3367.0,3366.9,0.29761]
[1735767079987,0.29762,3366.9,3366.8,0.29762]
[1735767080191,0.2976,3367.1,3366.9,0.29761]
[1735767080391,0.2976,3367.0,3366.9,0.29761]
[1735767080689,0.29763,3366.8,3366.5,41.2283]
[1735767080996,0.29765,3366.5,3366.4,3.2078]
[1735767081197,0.29766,3366.4,3366.3,0.73906]
[1735767081687,0.29768,3366.1,3366.0,0.29769]
[1735767083495,3.10148765,3366.3,3365.6,6.55457253]
[1735767083892,0.29771,3365.9,3365.8,0.29771]
[1735767084396,0.2977,3366.0,3365.9,0.2977]
[1735767084690,3.10148765,3366.3,3365.6,6.55457253]
[1735767084896,0.29768,3366.2,3366.1,0.29768]
[1735767085285,3.2078,3366.8,3365.8,3.2078]
[1735767085491,0.29763,3366.8,3366.7,0.29763]
[1735767086096,2.70668765,3366.9,3366.4,3.2078]
[1735767086691,0.29763,3366.8,3366.7,0.29763]
[1735767088894,2.70668765,3366.9,3366.4,3.2078]
[1735767089098,0.29764,3366.7,3366.6,0.29764]
[1735767090602,2.70668765,3366.9,3366.4,3.2078]
[1735767090793,2.53663765,3366.5,3366.4,3.2078]
[1735767090989,0.29769,3366.1,3366.0,0.29769]
[1735767091195,0.2977,3365.9,3365.8,0.2977]
[1735767091697,0.2977,3365.9,3365.7,3.6623]
[1735767091698,0.29771,3365.8,3365.7,0.29771]
[1735767092202,0.29771,3365.9,3365.8,0.2977]
[1735767096001,2.66858765,3366.2,3365.5,0.4319]
[1735767096195,0.4296,3366.2,3366.1,0.29768]
[1735767096395,0.72727,3366.2,3366.1,0.29768]
[1735767097299,0.29761,3366.9,3366.8,0.29762]
[1735767098397,0.4661,3367.1,3366.5,3.2078]
[1735767098601,0.4357,3367.2,3367.1,0.2976]
[1735767098903,0.4357,3367.2,3366.5,3.2078]
[1735767099096,0.2976,3367.1,3367.0,0.2976]
[1735767099493,0.29761,3367.0,3366.9,0.29761]
[1735767099700,0.29762,3366.9,3366.8,0.29762]
[1735767101410,0.29762,3366.8,3366.7,0.29763]
[1735767101604,0.29764,3366.7,3366.6,0.29764]
[1735767101800,0.29764,3366.7,3366.5,3.2078]
[1735767101801,0.29762,3366.8,3366.7,0.29763]
[1735767102201,2.23898765,3366.8,3366.5,3.2078]
[1735767102403,2.23898765,3366.8,3366.2,0.853]
[1735767102603,0.29765,3366.5,3366.4,0.29765]
[1735767103309,5.44678765,3366.8,3366.2,0.853]
[1735767103904,0.29765,3366.6,3366.2,0.853]
[1735767104101,3.2078,3366.8,3366.7,0.29763]
[1735767104298,0.4367,3367.0,3366.5,3.2078]
[1735767104507,0.4367,3367.0,3366.9,0.29761]
[1735767105106,0.4367,3367.0,3366.6,0.4448]
[1735767105107,2.23898765,3367.1,3366.6,0.4448]
[1735767105308,0.73329,3367.2,3367.1,0.2976]
[1735767105611,0.2976,3367.1,3367.0,0.2976]
[1735767108005,0.73329,3367.2,3367.1,0.2976]
[1735767109908,0.4357,3367.2,3366.6,0.4448]
[1735767110105,0.2976,3367.0,3366.9,0.29761]
[1735767110809,0.29762,3366.9,3366.8,0.29762]
[1735767111009,0.29761,3367.0,3366.9,0.29761]
[1735767111311,2.23898765,3367.1,3367.0,0.2976]
[1735767111312,2.53658765,3367.1,3367.0,0.2976]
[1735767113509,2.68008765,3367.4,3367.3,0.29758]
[1735767113715,2.97765765,3367.4,3367.3,0.29758]
[1735767114510,2.97765765,3367.4,3367.0,0.4265]
[1735767114511,0.29758,3367.3,3367.2,0.29758]
[1735767114709,2.97765765,3367.4,3367.3,0.29758]
[1735767115118,0.29758,3367.3,3367.2,0.29758]
[1735767118225,2.68008765,3367.4,3366.6,0.74411]
[1735767118526,0.29759,3367.3,3367.2,0.29758]
[1735767118821,2.68008765,3367.4,3366.7,1.18758]
[1735767119026,0.2976,3367.1,3367.0,0.2976]
[1735767121228,0.29759,3367.3,3367.2,0.29758]
[1735767121432,2.97765765,3367.4,3367.3,0.29758]
[1735767123930,0.29759,3367.3,3367.2,0.29758]
[1735767125929,2.97765765,3367.4,3367.3,0.29758]
[1735767127530,2.53655765,3367.4,3367.3,0.29758]
[1735767128023,0.73175,3367.6,3367.5,0.29756]
[1735767129029,0.4342,3367.6,3367.5,0.29756]
[1735767129629,0.73175,3367.6,3367.5,0.29756]
[1735767129830,0.4342,3367.6,3367.5,0.29756]
[1735767130533,0.73175,3367.6,3367.5,0.29756]
[1735767134635,0.4342,3367.6,3367.1,3.2078]
[1735767134938,5.44678765,3367.4,3366.6,3.6642]
[1735767135141,0.29761,3367.0,3366.9,0.29761]
[1735767135737,0.4419,3367.0,3366.9,0.29761]
[1735767136640,0.7395,3367.0,3366.9,0.29761]
[1735767137838,0.29762,3366.9,3366.8,0.29761]
[1735767138845,0.889,3367.0,3366.6,3.6642]
[1735767139046,0.29762,3366.9,3366.8,0.29761]
[1735767139239,5.44678765,3367.4,3366.6,3.6642]
[1735767139434,0.29759,3367.2,3367.1,0.29758]
[1735767140141,0.2976,3367.1,3367.0,0.2976]
[1735767142549,0.29762,3366.9,3366.8,0.29761]
[1735767143044,2.23898765,3367.1,3366.6,0.4564]
[1735767143241,2.23898765,3366.8,3366.4,0.4226]
[1735767143549,0.29765,3366.6,3366.5,0.29764]
[1735767143840,0.8833,3366.7,3366.2,0.4228]
[1735767144045,0.29767,3366.4,3366.3,0.29766]
[1735767144844,2.23898765,3366.5,3366.1,3.2078]
[1735767145045,0.2977,3366.0,3365.9,0.2977]
[1735767145450,2.23898765,3366.2,3365.7,0.29772]
[1735767145451,0.29771,3365.8,3365.7,0.29772]
[1735767145641,2.23898765,3365.9,3365.6,3.2078]
[1735767145845,0.29772,3365.7,3365.6,3.2078]
[1735767146045,0.29772,3365.7,3365.6,3.50553]
[1735767146444,2.23898765,3365.9,3365.4,0.4256]
[1735767146649,0.74893,3365.6,3365.5,0.29773]
[1735767148053,0.29774,3365.5,3365.4,0.72334]
[1735767148349,0.29775,3365.4,3365.3,0.29775]
[1735767149748,0.29779,3365.0,3364.8,0.2978]
[1735767150045,0.29777,3365.1,3365.0,0.29778]
[1735767150247,0.4416,3365.3,3364.7,3.2078]
[1735767150453,0.4416,3365.3,3365.2,0.29776]
[1735767151051,0.29775,3365.4,3365.2,0.29776]
[1735767151252,0.73935,3365.4,3365.2,0.29776]
[1735767151449,0.73935,3365.4,3365.2,41.09776]
[1735767151745,2.53673765,3365.3,3365.2,40.8]
[1735767151950,2.53673765,3365.3,3365.1,0.29777]
[1735767152454,2.53673765,3365.3,3364.8,40.8]
[1735767152749,2.53674765,3365.3,3365.2,0.29776]
[1735767153653,0.4416,3365.4,3365.3,0.29775]
[1735767154252,0.73935,3365.4,3365.3,0.29775]
[1735767154553,0.29775,3365.4,3365.3,0.29775]
[1735767155854,0.29775,3365.4,3365.2,0.29776]
[1735767156454,0.29775,3365.3,3365.2,0.29776]
[1735767156955,2.69018765,3365.6,3365.2,0.29776]
[1735767157255,0.29775,3365.4,3365.2,0.29776]
[1735767157552,0.29775,3365.3,3365.2,0.29776]
[1735767159357,2.23898765,3365.3,3364.8,3.2078]
[1735767159548,0.29778,3365.1,3365.0,0.29778]
[1735767159854,0.435,3365.2,3364.8,3.2078]
[1735767160147,0.4256,3365.1,3365.0,0.29778]
[1735767160352,0.72337,3365.1,3365.0,0.29778]
[1735767161951,0.4256,3365.1,3364.6,40.8]
[1735767162254,0.29781,3364.7,3364.6,0.29781]
[1735767162463,0.2978,3364.8,3364.7,0.2978]
[1735767162658,0.2978,3364.9,3364.8,0.2978]
[1735767162955,0.2978,3364.8,3364.7,0.2978]
[1735767164251,0.4256,3365.1,3364.5,0.4417]
[1735767164451,0.2978,3364.9,3364.8,0.29779]
[1735767164647,0.4256,3365.1,3364.5,0.4417]
[1735767164853,4.3878,3365.7,3364.9,0.74448]
[1735767165156,3.2078,3365.7,3365.6,0.29773]
[1735767166053,3.2078,3366.2,3365.5,0.74434]
[1735767166252,3.2078,3366.2,3365.3,0.4595]
[1735767166453,3.50548,3366.2,3366.1,0.29768]
[1735767168059,5.44678765,3366.2,3365.7,0.46]
[1735767168357,0.29769,3366.1,3366.0,0.29769]
[1735767169456,5.44678765,3366.2,3365.7,0.46]
[1735767169954,0.29771,3365.9,3365.8,0.29771]
[1735767170552,2.23898765,3365.9,3365.3,0.4595]
[1735767170858,0.29773,3365.6,3365.4,0.29775]
[1735767171057,0.29773,3365.7,3365.3,0.4595]
[1735767171357,0.29773,3365.7,3365.5,0.29773]
[1735767171553,0.29773,3365.7,3365.3,0.4595]
[1735767171752,0.29773,3365.7,3365.6,0.29773]
[1735767173559,0.9143,3365.8,3365.3,0.4595]
[1735767173858,0.29774,3365.5,3365.4,0.29774]
[1735767174958,0.29773,3365.6,3365.5,0.29773]
[1735767176762,0.29775,3365.5,3365.4,0.29774]
[1735767177263,0.29775,3365.5,3365.2,3.2078]
[1735767177264,0.29775,3365.3,3365.2,3.50556]
[1735767177451,2.53673765,3365.3,3365.0,0.29778]
[1735767177656,0.29777,3365.1,3365.0,0.29778]
[1735767177857,0.8971,3365.2,3364.9,0.4653]
[1735767178061,1.18,3365.5,3365.0,3.2078]
[1735767178261,1.18,3365.5,3365.4,0.29775]
[1735767178455,0.29774,3365.5,3365.4,3.50555]
[1735767178661,2.23898765,3365.6,3365.4,3.2078]
[1735767178862,2.53671765,3365.6,3365.5,0.29774]
[1735767179064,0.29773,3365.6,3365.5,0.29774]
[1735767179359,1.19483,3365.7,3365.6,0.29773]
[1735767180161,0.29774,3365.5,3365.4,3.50554]
[1735767180763,0.29774,3365.5,3365.4,3.2078]
[1735767180962,0.29774,3365.5,3365.4,0.29775]
[1735767181159,2.23898765,3365.6,3365.0,3.6731]
[1735767181361,0.2978,3364.9,3364.8,0.2978]
[1735767181563,0.2978,3364.8,3364.7,0.2978]
[1735767181761,0.4474,3364.8,3364.7,0.2978]
[1735767182264,0.7452,3364.8,3364.6,0.9255]
[1735767182461,0.7452,3364.8,3364.7,0.29781]
[1735767182855,0.29781,3364.7,3364.6,1.22331]
[1735767183059,0.29781,3364.7,3364.6,0.29782]
[1735767183262,0.7452,3364.8,3364.7,0.29781]
[1735767184064,0.29782,3364.6,3364.5,3.2078]
[1735767184366,2.53680765,3364.6,3364.5,3.2078]
[1735767184566,0.29783,3364.4,3364.3,0.75684]
[1735767184765,0.4328,3364.5,3364.4,0.29783]
[1735767185860,0.4328,3364.5,3364.4,0.76352067]
[1735767186364,0.4328,3364.5,3364.4,0.29783]
[1735767187769,0.4328,3364.5,3364.4,0.76351053]
[1735767188262,0.4474,3364.8,3364.4,0.76351053]
[1735767188463,1.1824,3364.8,3364.7,0.29781]
[1735767188665,0.8846,3364.8,3364.7,0.29781]
[1735767188861,2.23898765,3365.2,3364.4,40.8]
[1735767189167,2.23898765,3365.2,3365.1,0.29777]
[1735767200272,2.53674765,3365.2,3365.1,0.29777]
[1735767201168,0.29778,3365.0,3364.9,3.2078]
[1735767201577,0.29778,3365.0,3364.9,3.50559]
[1735767203575,2.23898765,3365.2,3364.9,3.2078]
[1735767203771,0.29778,3365.1,3365.0,0.29777]
[1735767204475,2.23898765,3365.2,3364.9,3.2078]
[1735767204673,0.4372,3365.3,3364.9,3.2078]
[1735767204870,0.4372,3365.3,3365.2,0.29776]
[1735767205873,2.53669765,3365.8,3365.5,0.29774]
[1735767206071,2.23898765,3365.8,3365.7,0.29772]
[1735767207481,0.8606,3365.9,3365.4,0.74437]
[1735767207781,3.2078,3366.4,3366.3,0.29767]
[1735767207782,5.74444765,3366.4,3366.3,0.29767]
[1735767208575,5.44678765,3366.4,3365.8,0.456]
[1735767208876,2.53668765,3366.0,3365.9,0.2977]
[1735767210671,2.23898765,3366.0,3365.7,3.2078]
[1735767210876,0.454,3365.9,3365.7,3.2078]
[1735767211077,0.8787,3365.9,3365.7,3.2078]
[1735767211273,0.29771,3365.8,3365.7,3.50551]
[1735767211777,1.17641,3365.9,3365.8,0.29771]
[1735767212378,0.454,3365.9,3365.8,0.29771]
[1735767212583,0.454,3365.9,3365.8,0.75061]
[1735767213582,0.29771,3365.8,3365.7,3.2078]
[1735767214083,0.29771,3365.8,3365.7,3.50552]
[1735767215081,0.454,3365.9,3365.7,3.2078]
[1735767215283,0.2977,3366.0,3365.9,0.29769]
[1735767218587,0.2977,3365.9,3365.8,0.75901]
[1735767220286,0.73018,3366.2,3366.1,0.29768]
[1735767220487,0.4325,3366.2,3366.1,0.29768]
[1735767220783,0.73017,3366.2,3366.1,0.29768]
[1735767221883,0.73017,3366.2,3366.1,3.50548]
[1735767228791,0.73017,3366.2,3366.1,3.2078]
[1735767230094,0.73017,3366.2,3366.1,3.50548]
[1735767231386,0.4325,3366.2,3366.1,3.50548]
[1735767231590,0.29766,3366.5,3366.4,0.29765]
[1735767234289,0.4632,3366.6,3366.1,3.2078]
[1735767234492,0.29767,3366.4,3366.3,0.29766]
[1735767237193,0.29767,3366.3,3366.2,0.29767]
[1735767238996,0.29767,3366.2,3366.1,3.50548]
[1735767239190,0.75087,3366.2,3366.1,3.50548]
[1735767239796,0.75087,3366.2,3366.1,3.2078]
[1735767240096,0.75087,3366.2,3366.1,3.50548]
[1735767241191,1.20732,3366.6,3366.4,0.29765]
[1735767241192,0.29765,3366.5,3366.4,0.29765]
[1735767243194,3.14188765,3366.6,3366.4,0.29765]
[1735767243399,0.4397,3366.6,3366.2,1.3404]
[1735767243594,0.4663,3366.9,3366.2,2.08459]
[1735767243802,0.7373,3367.1,3366.7,0.29763]
[1735767244005,0.29761,3367.0,3366.7,0.29763]
[1735767244195,0.4397,3367.1,3366.7,0.29763]
[1735767244502,0.29762,3366.9,3366.7,0.29763]
[1735767244895,0.29761,3367.0,3366.7,0.29763]
[1735767246196,0.29762,3366.9,3366.6,3.2078]
[1735767246401,0.29762,3366.9,3366.8,0.29762]
[1735767247295,0.4397,3367.1,3366.6,3.2078]
[1735767247497,0.29763,3366.8,3366.7,0.29763]
[1735767251303,0.29762,3366.9,3366.8,0.29761]
[1735767252998,0.29761,3367.0,3366.9,0.2976]
[1735767259410,0.4397,3367.1,3366.6,3.2078]
[1735767259606,0.4397,3367.1,3367.0,0.2976]
[1735767259804,3.6741,3367.4,3366.7,1.17468]
[1735767260002,3.2078,3367.4,3367.3,0.29758]
[1735767261109,0.29755,3367.7,3367.6,0.29754]
[1735767262302,3.2078,3367.8,3367.3,0.29757]
[1735767262303,0.29758,3367.4,3367.3,0.29757]